[Event "Grandmaster Triathlon (GM1)"]
[Site "Biel, CH"]
[Date "2025.07.20"]
[Round "19"]
[White "Fedoseev, Vladimir"]
[Black "Salem, A.R. Saleh"]
[Result "0-1"]
[Board "3"]
[TimeControl "180+2"]
[WhiteFideId "24130737"]
[BlackFideId "9301348"]
[WhiteTitle "GM"]
[BlackTitle "GM"]
[WhiteElo "2746"]
[BlackElo "2644"]
[WhiteTeam "SLO"]
[BlackTeam "UAE"]
[WhiteClock "0:00:06"]
[BlackClock "0:00:20"]
[Variant "Standard"]

1. d4 {[%clk 0:03:03]}  Nf6 {[%clk 0:03:03]} 2. c4 {[%clk 0:03:03]}  g6 {[%clk 0:03:05]} 3. Nc3 {[%clk 0:03:03]}  d5 {[%clk 0:03:06]} 4. Nf3 {[%clk 0:03:04]}  Bg7 {[%clk 0:03:07]} 5. h4 {[%clk 0:03:05]}  dxc4 {[%clk 0:03:08]} 6. e4 {[%clk 0:03:05]}  O-O {[%clk 0:03:09]} 7. h5 {[%clk 0:02:58]}  Nxh5 {[%clk 0:03:06]} 8. Bxc4 {[%clk 0:02:59]}  c5 {[%clk 0:03:04]} 9. d5 {[%clk 0:03:00]}  Bg4 {[%clk 0:03:00]} 10. Be3 {[%clk 0:02:58]}  Nd7 {[%clk 0:03:01]} 11. Qd2 {[%clk 0:02:56]}  b5 {[%clk 0:02:37]} 12. Bxb5 {[%clk 0:02:55]}  Rb8 {[%clk 0:02:39]} 13. Nh2 {[%clk 0:02:48]}  Ne5 {[%clk 0:02:07]} 14. f4 {[%clk 0:02:18]}  Bd7 {[%clk 0:01:52]} 15. Be2 {[%clk 0:02:11]}  Ng3 {[%clk 0:01:46]} 16. fxe5 {[%clk 0:01:58]}  Nxh1 {[%clk 0:01:47]} 17. Bf4 {[%clk 0:01:59]}  Rb4 {[%clk 0:01:38]} 18. Nf3 {[%clk 0:01:47]}  Bg4 {[%clk 0:01:37]} 19. a3 {[%clk 0:01:07]}  Rb7 {[%clk 0:01:38]} 20. Bc4 {[%clk 0:00:29]}  Qa5 {[%clk 0:01:12]} 21. O-O-O {[%clk 0:00:48]}  Rfb8 {[%clk 0:01:11]} 22. Rxh1 {[%clk 0:00:48]}  Rxb2 {[%clk 0:01:12]} 23. Qxb2 {[%clk 0:00:49]}  Rxb2 {[%clk 0:01:13]} 24. Kxb2 {[%clk 0:00:50]}  h5 {[%clk 0:00:48]} 25. Nd2 {[%clk 0:00:46]}  Qc7 {[%clk 0:00:45]} 26. d6 {[%clk 0:00:45]}  exd6 {[%clk 0:00:45]} 27. exd6 {[%clk 0:00:46]}  Qd7 {[%clk 0:00:22]} 28. Re1 {[%clk 0:00:36]}  g5 {[%clk 0:00:22]} 29. Bh2 {[%clk 0:00:34]}  Bd4 {[%clk 0:00:23]} 30. Nb3 {[%clk 0:00:28]}  Be6 {[%clk 0:00:21]} 31. Bxe6 {[%clk 0:00:24]}  fxe6 {[%clk 0:00:20]} 32. Kc2 {[%clk 0:00:06]} 0-1

[Event "Grandmaster Triathlon (GM1)"]
[Site "Biel, CH"]
[Date "2025.07.20"]
[Round "20"]
[White "Salem, A.R. Saleh"]
[Black "Aravindh, Chithambaram VR."]
[Result "1-0"]
[Board "1"]
[TimeControl "180+2"]
[WhiteFideId "9301348"]
[BlackFideId "5072786"]
[WhiteTitle "GM"]
[BlackTitle "GM"]
[WhiteElo "2644"]
[BlackElo "2611"]
[WhiteTeam "UAE"]
[BlackTeam "IND"]
[WhiteClock "0:01:51"]
[BlackClock "0:00:08"]
[Variant "Standard"]

1. d4 {[%clk 0:03:03]}  d5 {[%clk 0:03:03]} 2. c4 {[%clk 0:03:05]}  c6 {[%clk 0:03:03]} 3. Nf3 {[%clk 0:03:06]}  Nf6 {[%clk 0:03:04]} 4. Nc3 {[%clk 0:03:07]}  e6 {[%clk 0:03:02]} 5. g3 {[%clk 0:03:08]}  Nbd7 {[%clk 0:03:01]} 6. Bg2 {[%clk 0:03:09]}  dxc4 {[%clk 0:02:58]} 7. O-O {[%clk 0:03:09]}  b5 {[%clk 0:02:58]} 8. e4 {[%clk 0:03:10]}  Bb7 {[%clk 0:02:54]} 9. e5 {[%clk 0:03:11]}  Nd5 {[%clk 0:02:54]} 10. Ng5 {[%clk 0:03:12]}  Be7 {[%clk 0:02:44]} 11. Qh5 {[%clk 0:03:12]}  g6 {[%clk 0:02:38]} 12. Qh6 {[%clk 0:03:13]}  Bf8 {[%clk 0:02:35]} 13. Qh3 {[%clk 0:03:14]}  Be7 {[%clk 0:02:26]} 14. Qh6 {[%clk 0:03:15]}  Bf8 {[%clk 0:02:26]} 15. Qh3 {[%clk 0:03:16]}  Be7 {[%clk 0:02:20]} 16. Nge4 {[%clk 0:03:03]}  Qb6 {[%clk 0:02:15]} 17. Be3 {[%clk 0:03:04]}  O-O-O {[%clk 0:02:08]} 18. a4 {[%clk 0:03:02]}  a5 {[%clk 0:02:03]} 19. Bg5 {[%clk 0:02:42]}  Bxg5 {[%clk 0:01:49]} 20. Nxg5 {[%clk 0:02:43]}  Rdf8 {[%clk 0:01:22]} 21. Nce4 {[%clk 0:02:36]}  Kb8 {[%clk 0:01:20]} 22. Nd6 {[%clk 0:02:30]}  Qxd4 {[%clk 0:01:16]} 23. Ngxf7 {[%clk 0:02:28]}  Rhg8 {[%clk 0:00:55]} 24. axb5 {[%clk 0:02:29]}  cxb5 {[%clk 0:00:53]} 25. Nxb7 {[%clk 0:02:24]}  Rxf7 {[%clk 0:00:35]} 26. Qxe6 {[%clk 0:02:21]}  Nxe5 {[%clk 0:00:35]} 27. Bxd5 {[%clk 0:02:09]}  Rgg7 {[%clk 0:00:08]} 28. Qe8+ {[%clk 0:01:49]}  Ka7 {[%clk 0:00:06]} 29. Rxa5+ {[%clk 0:01:50]}  Kb6 {[%clk 0:00:08]} 30. Qe6+ {[%clk 0:01:51]} 1-0

[Event "Grandmaster Triathlon (GM1)"]
[Site "Biel, CH"]
[Date "2025.07.20"]
[Round "20"]
[White "Svane, Frederik"]
[Black "Fedoseev, Vladimir"]
[Result "0-1"]
[Board "2"]
[TimeControl "180+2"]
[WhiteFideId "12923044"]
[BlackFideId "24130737"]
[WhiteTitle "GM"]
[BlackTitle "GM"]
[WhiteElo "2553"]
[BlackElo "2746"]
[WhiteTeam "GER"]
[BlackTeam "SLO"]
[WhiteClock "0:00:00"]
[BlackClock "0:00:07"]
[Variant "Standard"]

1. e4 {[%clk 0:03:03]}  c5 {[%clk 0:03:02]} 2. Nf3 {[%clk 0:03:04]}  e6 {[%clk 0:03:03]} 3. d4 {[%clk 0:02:59]}  cxd4 {[%clk 0:03:04]} 4. Nxd4 {[%clk 0:03:00]}  Nf6 {[%clk 0:03:05]} 5. Bd3 {[%clk 0:03:01]}  Nc6 {[%clk 0:02:55]} 6. Nxc6 {[%clk 0:03:01]}  bxc6 {[%clk 0:02:51]} 7. Bf4 {[%clk 0:03:02]}  d5 {[%clk 0:02:38]} 8. Nd2 {[%clk 0:03:03]}  Be7 {[%clk 0:02:33]} 9. O-O {[%clk 0:02:33]}  O-O {[%clk 0:02:33]} 10. c4 {[%clk 0:02:17]}  a5 {[%clk 0:02:29]} 11. Qe2 {[%clk 0:02:05]}  a4 {[%clk 0:02:26]} 12. Rac1 {[%clk 0:01:59]}  Qb6 {[%clk 0:02:21]} 13. cxd5 {[%clk 0:01:54]}  cxd5 {[%clk 0:02:20]} 14. exd5 {[%clk 0:01:55]}  Nxd5 {[%clk 0:02:15]} 15. Nc4 {[%clk 0:01:53]}  Qa7 {[%clk 0:01:37]} 16. Be5 {[%clk 0:01:41]}  Bb7 {[%clk 0:01:22]} 17. Rfd1 {[%clk 0:01:18]}  Rad8 {[%clk 0:01:22]} 18. Be4 {[%clk 0:01:14]}  Nf6 {[%clk 0:00:49]} 19. Rxd8 {[%clk 0:01:03]}  Bxd8 {[%clk 0:00:32]} 20. Bxb7 {[%clk 0:00:58]}  Qxb7 {[%clk 0:00:33]} 21. Bd6 {[%clk 0:00:59]}  Be7 {[%clk 0:00:31]} 22. Na5 {[%clk 0:00:49]}  Qd7 {[%clk 0:00:32]} 23. Bxe7 {[%clk 0:00:46]}  Qxe7 {[%clk 0:00:33]} 24. Qb5 {[%clk 0:00:37]}  a3 {[%clk 0:00:21]} 25. b4 {[%clk 0:00:38]}  Nd5 {[%clk 0:00:20]} 26. Nc6 {[%clk 0:00:34]}  Qg5 {[%clk 0:00:21]} 27. Qc5 {[%clk 0:00:28]}  Qd2 {[%clk 0:00:21]} 28. Qc2 {[%clk 0:00:19]}  Qg5 {[%clk 0:00:21]} 29. g3 {[%clk 0:00:18]}  h5 {[%clk 0:00:18]} 30. h4 {[%clk 0:00:19]}  Qg4 {[%clk 0:00:18]} 31. b5 {[%clk 0:00:19]}  Nf4 {[%clk 0:00:16]} 32. Re1 {[%clk 0:00:07]}  Nd5 {[%clk 0:00:15]} 33. Qe4 {[%clk 0:00:10]}  Qxe4 {[%clk 0:00:16]} 34. Rxe4 {[%clk 0:00:11]}  Nc3 {[%clk 0:00:17]} 35. Rb4 {[%clk 0:00:07]}  Nd5 {[%clk 0:00:05]} 36. Rb3 {[%clk 0:00:06]}  Rc8 {[%clk 0:00:06]} 37. Rxa3 {[%clk 0:00:05]}  Kf8 {[%clk 0:00:08]} 38. Rb3 {[%clk 0:00:05]}  Ke8 {[%clk 0:00:06]} 39. a4 {[%clk 0:00:06]}  Kd7 {[%clk 0:00:07]} 40. a5 {[%clk 0:00:08]}  Kc7 {[%clk 0:00:08]} 41. Ne5 {[%clk 0:00:04]}  f6 {[%clk 0:00:07]} 42. Nc6 {[%clk 0:00:05]}  Kd6 {[%clk 0:00:07]} 43. a6 {[%clk 0:00:05]}  Kc5 {[%clk 0:00:08]} 44. Kg2 {[%clk 0:00:04]}  Kb6 {[%clk 0:00:08]} 45. Rb2 {[%clk 0:00:04]}  Nc3 {[%clk 0:00:09]} 46. Nd4 {[%clk 0:00:05]}  e5 {[%clk 0:00:10]} 47. Nf5 {[%clk 0:00:06]}  Rc7 {[%clk 0:00:07]} 48. Rb3 {[%clk 0:00:01]}  Ne4 {[%clk 0:00:06]} 49. Ne3 {[%clk 0:00:05]}  Rc5 {[%clk 0:00:06]} 50. Rb4 {[%clk 0:00:04]}  Nd6 {[%clk 0:00:07]} 51. Rb2 {[%clk 0:00:03]}  Nxb5 {[%clk 0:00:07]} 52. Nf5 {[%clk 0:00:04]}  g6 {[%clk 0:00:05]} 53. Ne7 {[%clk 0:00:05]}  g5 {[%clk 0:00:06]} 54. hxg5 {[%clk 0:00:05]}  fxg5 {[%clk 0:00:08]} 55. Ng6 {[%clk 0:00:04]}  e4 {[%clk 0:00:07]} 56. Rb4 {[%clk 0:00:04]}  e3 {[%clk 0:00:07]} 57. fxe3 {[%clk 0:00:00]}  Kxa6 {[%clk 0:00:07]} 0-1

[Event "Grandmaster Triathlon (GM1)"]
[Site "Biel, CH"]
[Date "2025.07.20"]
[Round "20"]
[White "Wojtaszek, Radoslaw"]
[Black "Murzin, Volodar"]
[Result "0-1"]
[Board "3"]
[TimeControl "180+2"]
[WhiteFideId "1118358"]
[BlackFideId "44155573"]
[WhiteTitle "GM"]
[BlackTitle "GM"]
[WhiteElo "2610"]
[BlackElo "2669"]
[WhiteTeam "POL"]
[BlackTeam "FID"]
[WhiteClock "0:00:09"]
[BlackClock "0:00:20"]
[Variant "Standard"]

1. d4 {[%clk 0:03:03]}  Nf6 {[%clk 0:03:03]} 2. c4 {[%clk 0:03:04]}  g6 {[%clk 0:03:04]} 3. Nf3 {[%clk 0:03:05]}  Bg7 {[%clk 0:03:04]} 4. g3 {[%clk 0:03:06]}  b6 {[%clk 0:03:05]} 5. Bg2 {[%clk 0:03:05]}  Bb7 {[%clk 0:03:06]} 6. Qc2 {[%clk 0:03:02]}  Be4 {[%clk 0:03:03]} 7. Qd2 {[%clk 0:03:01]}  Bb7 {[%clk 0:02:51]} 8. O-O {[%clk 0:02:54]}  O-O {[%clk 0:02:51]} 9. b3 {[%clk 0:02:51]}  a5 {[%clk 0:02:45]} 10. Nc3 {[%clk 0:02:47]}  Ne4 {[%clk 0:02:45]} 11. Nxe4 {[%clk 0:02:48]}  Bxe4 {[%clk 0:02:46]} 12. Bb2 {[%clk 0:02:48]}  d6 {[%clk 0:02:47]} 13. d5 {[%clk 0:02:44]}  Bxf3 {[%clk 0:02:45]} 14. exf3 {[%clk 0:02:37]}  Nd7 {[%clk 0:02:44]} 15. Bxg7 {[%clk 0:02:32]}  Kxg7 {[%clk 0:02:45]} 16. Qc3+ {[%clk 0:02:33]}  Nf6 {[%clk 0:02:42]} 17. Rfe1 {[%clk 0:02:28]}  Re8 {[%clk 0:02:43]} 18. Re3 {[%clk 0:02:29]}  Qd7 {[%clk 0:02:23]} 19. f4 {[%clk 0:02:27]}  Kf8 {[%clk 0:02:02]} 20. a4 {[%clk 0:02:17]}  Qf5 {[%clk 0:01:58]} 21. Rae1 {[%clk 0:02:16]}  Ng8 {[%clk 0:01:56]} 22. h4 {[%clk 0:02:13]}  Qf6 {[%clk 0:01:55]} 23. Qd2 {[%clk 0:02:12]}  Rad8 {[%clk 0:01:51]} 24. Bh3 {[%clk 0:02:13]}  h5 {[%clk 0:01:49]} 25. Kg2 {[%clk 0:02:01]}  Nh6 {[%clk 0:01:49]} 26. Qe2 {[%clk 0:02:03]}  Ng8 {[%clk 0:01:39]} 27. Re4 {[%clk 0:02:03]}  Qg7 {[%clk 0:01:21]} 28. f5 {[%clk 0:01:52]}  g5 {[%clk 0:01:22]} 29. hxg5 {[%clk 0:01:26]}  Qxg5 {[%clk 0:01:22]} 30. Kh2 {[%clk 0:01:27]}  Nf6 {[%clk 0:01:16]} 31. Re3 {[%clk 0:01:25]}  Kg7 {[%clk 0:00:53]} 32. Rf3 {[%clk 0:01:12]}  Rh8 {[%clk 0:00:49]} 33. Rf4 {[%clk 0:01:12]}  h4 {[%clk 0:00:41]} 34. Rg1 {[%clk 0:00:57]}  Kf8 {[%clk 0:00:40]} 35. Qf3 {[%clk 0:00:47]}  hxg3+ {[%clk 0:00:39]} 36. Qxg3 {[%clk 0:00:40]}  Qh6 {[%clk 0:00:32]} 37. Qe3 {[%clk 0:00:21]}  Ke8 {[%clk 0:00:31]} 38. Rf3 {[%clk 0:00:16]}  Kd7 {[%clk 0:00:30]} 39. Qxh6 {[%clk 0:00:16]}  Rxh6 {[%clk 0:00:31]} 40. Rg7 {[%clk 0:00:17]}  Rf8 {[%clk 0:00:30]} 41. Kg2 {[%clk 0:00:15]}  Ke8 {[%clk 0:00:30]} 42. Kf1 {[%clk 0:00:13]}  Rfh8 {[%clk 0:00:30]} 43. Bg2 {[%clk 0:00:11]}  Kf8 {[%clk 0:00:31]} 44. Rgg3 {[%clk 0:00:12]}  Ne4 {[%clk 0:00:32]} 45. Rg4 {[%clk 0:00:08]}  Nd2+ {[%clk 0:00:33]} 46. Ke2 {[%clk 0:00:10]}  Nxf3 {[%clk 0:00:34]} 47. Bxf3 {[%clk 0:00:11]}  Rg8 {[%clk 0:00:27]} 48. Re4 {[%clk 0:00:08]}  Rg5 {[%clk 0:00:27]} 49. Rf4 {[%clk 0:00:09]}  Kg7 {[%clk 0:00:27]} 50. Ke3 {[%clk 0:00:09]}  Kf6 {[%clk 0:00:28]} 51. Be4 {[%clk 0:00:10]}  Rh3+ {[%clk 0:00:28]} 52. f3 {[%clk 0:00:09]}  Rg2 {[%clk 0:00:26]} 53. Kd4 {[%clk 0:00:08]}  Kg5 {[%clk 0:00:20]} 54. f6 {[%clk 0:00:09]}  Kxf4 {[%clk 0:00:20]} 0-1

[Event "Grandmaster Triathlon (GM1)"]
[Site "Biel, CH"]
[Date "2025.07.22"]
[Round "21"]
[White "Aravindh, Chithambaram VR."]
[Black "Fedoseev, Vladimir"]
[Result "1/2-1/2"]
[Board "1"]
[TimeControl "40/7200+30:1800+30"]
[WhiteFideId "5072786"]
[BlackFideId "24130737"]
[WhiteTitle "GM"]
[BlackTitle "GM"]
[WhiteElo "2724"]
[BlackElo "2739"]
[WhiteTeam "IND"]
[BlackTeam "SLO"]
[WhiteClock "0:25:07"]
[BlackClock "0:29:40"]
[Variant "Standard"]

1. Nf3 {[%clk 1:59:48]}  d5 {[%clk 1:59:10]} 2. e3 {[%clk 1:59:37]}  g6 {[%clk 1:55:53]} 3. c4 {[%clk 1:58:40]}  e6 {[%clk 1:55:44]} 4. d4 {[%clk 1:55:43]}  Bg7 {[%clk 1:55:17]} 5. Nc3 {[%clk 1:54:35]}  Nf6 {[%clk 1:51:31]} 6. Be2 {[%clk 1:53:15]}  O-O {[%clk 1:46:27]} 7. O-O {[%clk 1:53:04]}  dxc4 {[%clk 1:37:33]} 8. Bxc4 {[%clk 1:50:59]}  Nd5 {[%clk 1:34:12]} 9. e4 {[%clk 1:44:59]}  Nb6 {[%clk 1:33:52]} 10. Bb3 {[%clk 1:42:48]}  Nc6 {[%clk 1:32:35]} 11. e5 {[%clk 1:39:17]}  h6 {[%clk 1:26:29]} 12. h4 {[%clk 1:25:08]}  f6 {[%clk 1:19:16]} 13. Be3 {[%clk 1:17:49]}  Nd5 {[%clk 1:17:29]} 14. exf6 {[%clk 1:15:37]}  Nxf6 {[%clk 0:50:58]} 15. Ne5 {[%clk 0:51:28]}  Kh7 {[%clk 1:03:10]} 16. Nxc6 {[%clk 0:44:15]}  bxc6 {[%clk 1:03:04]} 17. Bc2 {[%clk 0:44:12]}  e5 {[%clk 0:54:41]} 18. dxe5 {[%clk 0:42:07]}  Ng4 {[%clk 0:54:36]} 19. Qxd8 {[%clk 0:39:37]}  Rxd8 {[%clk 0:54:31]} 20. Bf4 {[%clk 0:39:24]}  Rb8 {[%clk 0:50:48]} 21. Rfe1 {[%clk 0:20:26]}  Rxb2 {[%clk 0:47:01]} 22. Rac1 {[%clk 0:20:22]}  Re8 {[%clk 0:40:22]} 23. h5 {[%clk 0:15:10]}  Bf5 {[%clk 0:40:06]} 24. hxg6+ {[%clk 0:14:43]}  Kxg6 {[%clk 0:36:03]} 25. Bxf5+ {[%clk 0:14:35]}  Kxf5 {[%clk 0:36:00]} 26. Nd1 {[%clk 0:14:24]}  Rxa2 {[%clk 0:34:36]} 27. Bg3 {[%clk 0:14:09]}  Re6 {[%clk 0:22:22]} 28. f3 {[%clk 0:10:50]}  Nxe5 {[%clk 0:22:16]} 29. Rc5 {[%clk 0:10:13]}  Ra4 {[%clk 0:19:10]} 30. Kh2 {[%clk 0:04:59]}  h5 {[%clk 0:17:57]} 31. Kh3 {[%clk 0:04:31]}  Bf6 {[%clk 0:14:22]} 32. Nc3 {[%clk 0:03:52]}  Rd4 {[%clk 0:13:33]} 33. Re3 {[%clk 0:02:30]}  Re7 {[%clk 0:11:29]} 34. f4 {[%clk 0:02:10]}  Rxf4 {[%clk 0:10:54]} 35. Bxf4 {[%clk 0:02:06]}  Kxf4 {[%clk 0:10:49]} 36. Re2 {[%clk 0:01:34]}  Bg7 {[%clk 0:07:56]} 37. Ra5 {[%clk 0:01:09]}  Rd7 {[%clk 0:07:38]} 38. g3+ {[%clk 0:00:47]}  Kf5 {[%clk 0:07:32]} 39. Ne4 {[%clk 0:00:28]}  Rd5 {[%clk 0:02:46]} 40. Rxa7 {[%clk 0:30:47]}  Nf3 {[%clk 0:33:12]} 41. Kg2 {[%clk 0:23:52]}  Nd4 {[%clk 0:33:34]} 42. Re1 {[%clk 0:24:02]}  Nc2 {[%clk 0:29:50]} 43. Re2 {[%clk 0:24:20]}  Nd4 {[%clk 0:30:13]} 44. Re1 {[%clk 0:24:44]}  Nc2 {[%clk 0:29:14]} 45. Re2 {[%clk 0:25:07]}  Nd4 {[%clk 0:29:40]} 1/2-1/2

[Event "Grandmaster Triathlon (GM1)"]
[Site "Biel, CH"]
[Date "2025.07.22"]
[Round "21"]
[White "Murzin, Volodar"]
[Black "Salem, A.R. Saleh"]
[Result "1/2-1/2"]
[Board "2"]
[TimeControl "40/7200+30:1800+30"]
[WhiteFideId "44155573"]
[BlackFideId "9301348"]
[WhiteTitle "GM"]
[BlackTitle "GM"]
[WhiteElo "2671"]
[BlackElo "2627"]
[WhiteTeam "FID"]
[BlackTeam "UAE"]
[WhiteClock "0:07:14"]
[BlackClock "0:16:41"]
[Variant "Standard"]

1. e4 {[%clk 1:59:02]}  c5 {[%clk 1:59:48]} 2. Nf3 {[%clk 1:58:55]}  Nc6 {[%clk 1:59:32]} 3. Bb5 {[%clk 1:58:40]}  g6 {[%clk 1:57:47]} 4. Bxc6 {[%clk 1:58:20]}  dxc6 {[%clk 1:57:41]} 5. d3 {[%clk 1:58:01]}  Bg7 {[%clk 1:57:35]} 6. a4 {[%clk 1:56:18]}  Nf6 {[%clk 1:54:45]} 7. a5 {[%clk 1:46:41]}  O-O {[%clk 1:53:31]} 8. O-O {[%clk 1:41:17]}  Nd7 {[%clk 1:49:10]} 9. Nbd2 {[%clk 1:43:31]}  e5 {[%clk 1:47:29]} 10. Nc4 {[%clk 1:43:12]}  Qe7 {[%clk 1:47:21]} 11. Bd2 {[%clk 1:35:27]}  Nb8 {[%clk 1:45:12]} 12. Bg5 {[%clk 1:21:13]}  f6 {[%clk 1:44:02]} 13. Be3 {[%clk 1:21:06]}  Be6 {[%clk 1:43:05]} 14. Nfd2 {[%clk 1:20:33]}  Nd7 {[%clk 1:42:20]} 15. Re1 {[%clk 1:09:50]}  b5 {[%clk 1:23:39]} 16. axb6 {[%clk 1:09:40]}  axb6 {[%clk 1:23:37]} 17. Qe2 {[%clk 1:08:36]}  Rfc8 {[%clk 1:12:39]} 18. Qf1 {[%clk 1:01:11]}  Bf8 {[%clk 1:07:29]} 19. Rxa8 {[%clk 0:50:05]}  Rxa8 {[%clk 1:07:10]} 20. Ra1 {[%clk 0:50:00]}  Qd8 {[%clk 1:05:47]} 21. Nb3 {[%clk 0:45:38]}  Be7 {[%clk 1:01:58]} 22. Ncd2 {[%clk 0:34:18]}  Bf7 {[%clk 0:54:53]} 23. f3 {[%clk 0:29:19]}  Bd6 {[%clk 0:48:52]} 24. Rxa8 {[%clk 0:25:59]}  Qxa8 {[%clk 0:47:36]} 25. Qa1 {[%clk 0:25:53]}  Qb7 {[%clk 0:41:09]} 26. Nc1 {[%clk 0:25:28]}  Nf8 {[%clk 0:36:45]} 27. Kf1 {[%clk 0:21:33]}  Ne6 {[%clk 0:35:47]} 28. b3 {[%clk 0:20:02]}  Nd4 {[%clk 0:33:21]} 29. Qa2 {[%clk 0:19:56]}  Kg7 {[%clk 0:32:24]} 30. Ne2 {[%clk 0:19:28]}  h5 {[%clk 0:31:51]} 31. Bf2 {[%clk 0:15:51]}  Qb8 {[%clk 0:28:37]} 32. h3 {[%clk 0:14:45]}  Kh7 {[%clk 0:26:51]} 33. Be3 {[%clk 0:11:50]}  Bf8 {[%clk 0:25:04]} 34. Ke1 {[%clk 0:09:29]}  Kg8 {[%clk 0:23:40]} 35. Kd1 {[%clk 0:08:05]}  Qb7 {[%clk 0:17:58]} 36. Ke1 {[%clk 0:07:47]}  Qb8 {[%clk 0:17:15]} 37. Kd1 {[%clk 0:07:39]}  Qb7 {[%clk 0:17:04]} 38. Ke1 {[%clk 0:07:14]}  Qb8 {[%clk 0:16:41]} 1/2-1/2

[Event "Grandmaster Triathlon (GM1)"]
[Site "Biel, CH"]
[Date "2025.07.23"]
[Round "22"]
[White "Fedoseev, Vladimir"]
[Black "Murzin, Volodar"]
[Result "0-1"]
[Board "1"]
[TimeControl "40/7200+30:1800+30"]
[WhiteFideId "24130737"]
[BlackFideId "44155573"]
[WhiteTitle "GM"]
[BlackTitle "GM"]
[WhiteElo "2739"]
[BlackElo "2671"]
[WhiteTeam "SLO"]
[BlackTeam "FID"]
[WhiteClock "0:02:34"]
[BlackClock "0:03:32"]
[Variant "Standard"]

1. d4 {[%clk 1:59:58]}  Nf6 {[%clk 1:59:50]} 2. c4 {[%clk 1:59:48]}  c6 {[%clk 1:59:45]} 3. Nc3 {[%clk 1:53:15]}  d5 {[%clk 1:59:36]} 4. cxd5 {[%clk 1:53:10]}  cxd5 {[%clk 1:59:31]} 5. Nf3 {[%clk 1:52:58]}  Nc6 {[%clk 1:59:20]} 6. e3 {[%clk 1:52:49]}  g6 {[%clk 1:45:38]} 7. Ne5 {[%clk 1:48:13]}  Bg7 {[%clk 1:43:09]} 8. Bb5 {[%clk 1:46:11]}  Bd7 {[%clk 1:43:02]} 9. Nxd7 {[%clk 1:44:59]}  Qxd7 {[%clk 1:42:59]} 10. O-O {[%clk 1:44:51]}  O-O {[%clk 1:42:42]} 11. Bd2 {[%clk 1:44:49]}  Rfc8 {[%clk 1:33:36]} 12. Be2 {[%clk 1:37:53]}  e6 {[%clk 1:27:53]} 13. Na4 {[%clk 1:33:36]}  Ne4 {[%clk 1:25:53]} 14. Be1 {[%clk 1:32:37]}  Rc7 {[%clk 1:23:43]} 15. Bd3 {[%clk 1:26:54]}  Nd6 {[%clk 1:22:57]} 16. Rc1 {[%clk 1:23:52]}  Rac8 {[%clk 1:18:55]} 17. b3 {[%clk 1:22:54]}  Qd8 {[%clk 1:13:26]} 18. Rc2 {[%clk 1:18:27]}  Bf8 {[%clk 1:01:26]} 19. Kh1 {[%clk 1:10:54]}  Ne8 {[%clk 0:55:58]} 20. Bd2 {[%clk 1:04:52]}  Nf6 {[%clk 0:47:13]} 21. f3 {[%clk 0:56:02]}  Nd7 {[%clk 0:32:42]} 22. Qe1 {[%clk 0:47:28]}  Bd6 {[%clk 0:23:46]} 23. Rc1 {[%clk 0:43:10]}  Ba3 {[%clk 0:18:27]} 24. Rd1 {[%clk 0:37:45]}  Bf8 {[%clk 0:18:03]} 25. Bb1 {[%clk 0:36:01]}  Qe7 {[%clk 0:15:12]} 26. Nc3 {[%clk 0:34:09]}  a6 {[%clk 0:14:08]} 27. e4 {[%clk 0:29:08]}  Nb6 {[%clk 0:13:27]} 28. Ne2 {[%clk 0:28:11]}  Nb4 {[%clk 0:07:06]} 29. Bc3 {[%clk 0:26:32]}  Nd7 {[%clk 0:06:08]} 30. e5 {[%clk 0:24:56]}  Nc6 {[%clk 0:05:51]} 31. g4 {[%clk 0:24:09]}  Qa3 {[%clk 0:04:22]} 32. f4 {[%clk 0:20:50]}  Bb4 {[%clk 0:03:42]} 33. Bd2 {[%clk 0:20:38]}  Bxd2 {[%clk 0:03:19]} 34. Qxd2 {[%clk 0:20:25]}  Qe7 {[%clk 0:03:15]} 35. f5 {[%clk 0:19:35]}  Qh4 {[%clk 0:03:04]} 36. f6 {[%clk 0:16:10]}  h6 {[%clk 0:01:43]} 37. Ng1 {[%clk 0:12:41]}  Nf8 {[%clk 0:01:25]} 38. Qg2 {[%clk 0:11:32]}  Qg5 {[%clk 0:01:08]} 39. Nf3 {[%clk 0:05:52]}  Qf4 {[%clk 0:01:05]} 40. h4 {[%clk 0:35:43]}  Qe3 {[%clk 0:31:21]} 41. Rd3 {[%clk 0:28:25]}  Qe4 {[%clk 0:31:44]} 42. Qg1 {[%clk 0:28:24]}  Nb4 {[%clk 0:30:03]} 43. Rdd1 {[%clk 0:22:07]}  Nc2 {[%clk 0:27:15]} 44. Rf2 {[%clk 0:20:10]}  Rc3 {[%clk 0:10:07]} 45. Qg2 {[%clk 0:16:54]}  Ne3 {[%clk 0:09:13]} 46. Bxe4 {[%clk 0:17:06]}  Nxg2 {[%clk 0:09:37]} 47. Kxg2 {[%clk 0:17:16]}  dxe4 {[%clk 0:10:02]} 48. Ne1 {[%clk 0:16:39]}  g5 {[%clk 0:07:51]} 49. Re2 {[%clk 0:10:04]}  gxh4 {[%clk 0:07:17]} 50. Rxe4 {[%clk 0:10:22]}  Nh7 {[%clk 0:07:20]} 51. Kf2 {[%clk 0:07:15]}  Rg3 {[%clk 0:05:50]} 52. g5 {[%clk 0:06:35]}  hxg5 {[%clk 0:06:05]} 53. Rd3 {[%clk 0:01:56]}  Rxd3 {[%clk 0:02:01]} 54. Nxd3 {[%clk 0:04:19]}  Rc3 {[%clk 0:02:26]} 55. Ne1 {[%clk 0:04:06]}  Rg3 {[%clk 0:02:07]} 56. Nf3 {[%clk 0:02:26]}  Nf8 {[%clk 0:02:31]} 57. a4 {[%clk 0:02:48]}  Ng6 {[%clk 0:01:45]} 58. a5 {[%clk 0:02:45]}  Kf8 {[%clk 0:00:34]} 59. d5 {[%clk 0:02:13]}  exd5 {[%clk 0:01:03]} 60. Rb4 {[%clk 0:02:37]}  Nf4 {[%clk 0:00:53]} 61. Rxb7 {[%clk 0:03:03]}  Kg8 {[%clk 0:01:03]} 62. e6 {[%clk 0:02:26]}  Nxe6 {[%clk 0:01:03]} 63. Ne5 {[%clk 0:02:27]}  Nc5 {[%clk 0:01:23]} 64. Ra7 {[%clk 0:01:36]}  Nd3+ {[%clk 0:00:40]} 65. Nxd3 {[%clk 0:02:00]}  Rxd3 {[%clk 0:01:41]} 66. Rxa6 {[%clk 0:02:21]}  Rxb3 {[%clk 0:01:50]} 67. Rd6 {[%clk 0:02:38]}  Kh7 {[%clk 0:01:50]} 68. Rxd5 {[%clk 0:01:57]}  Kg6 {[%clk 0:02:18]} 69. Rd8 {[%clk 0:01:16]}  Ra3 {[%clk 0:02:09]} 70. Ra8 {[%clk 0:01:11]}  Kxf6 {[%clk 0:01:57]} 71. a6 {[%clk 0:02:07]}  Kf5 {[%clk 0:03:18]} 72. a7 {[%clk 0:02:34]}  Kg4 {[%clk 0:03:32]} 0-1